bitfinex/quotes_BTCUSD_20250529
["timestamp","ask_amount","ask_price","bid_price","bid_amount"]
[1748488463109,0.60275921,108180.0,108170.0,0.01378886]
[1748488463521,0.60275921,108180.0,108170.0,0.00514808]
[1748488463729,0.29971553,108180.0,108170.0,0.01378775]
[1748488463893,0.49524073,108180.0,108170.0,0.04568594]
[1748488464339,0.50005588,108180.0,108170.0,0.04568594]
[1748488464891,0.19893588,108180.0,108170.0,0.04568594]
[1748488465133,0.50005588,108180.0,108170.0,0.03704808]
[1748488467843,0.50005588,108180.0,108170.0,0.05552808]
[1748488468051,0.50005588,108180.0,108170.0,0.03704808]
[1748488468965,0.19893588,108180.0,108170.0,0.03704808]
[1748488469185,0.50001588,108180.0,108170.0,0.03704808]
[1748488469411,0.48001588,108180.0,108170.0,0.03704808]
[1748488472169,0.17893588,108180.0,108170.0,0.03704808]
[1748488472351,0.48001588,108180.0,108170.0,0.03704808]
[1748488473657,0.48001588,108180.0,108170.0,0.13424808]
[1748488476428,0.46001588,108180.0,108170.0,0.13424808]
[1748488481055,0.46001588,108180.0,108170.0,0.11764808]
[1748488481701,0.46001588,108180.0,108170.0,0.10234808]
[1748488482567,0.46001588,108180.0,108170.0,0.00514808]
[1748488482806,0.46001588,108180.0,108170.0,0.10234808]
[1748488483683,0.44001588,108180.0,108170.0,0.10234808]
[1748488483895,0.13893588,108180.0,108170.0,0.10234808]
[1748488486654,0.13893588,108180.0,108170.0,0.11098247]
[1748488487512,0.13893588,108180.0,108170.0,0.11098249]
[1748488488156,0.13893588,108180.0,108170.0,0.10234808]
[1748488488361,0.13893588,108180.0,108170.0,0.11098254]
[1748488488797,0.13893588,108180.0,108170.0,0.11098272]
[1748488488990,0.13893588,108180.0,108170.0,0.11126272]
[1748488489236,0.13893588,108180.0,108170.0,0.11126306]
[1748488490100,0.13893588,108180.0,108170.0,0.11126332]
[1748488490749,0.11893588,108180.0,108170.0,0.1112644]
[1748488492433,0.11893588,108180.0,108170.0,0.11126557]
[1748488492588,0.11893588,108180.0,108170.0,0.11126764]
[1748488493171,0.11893588,108180.0,108170.0,0.10262808]
[1748488495190,0.11893588,108180.0,108170.0,0.11127262]
[1748488495661,0.11893588,108180.0,108170.0,0.11127252]
[1748488495863,0.11893588,108180.0,108170.0,0.11127251]
[1748488496095,0.12817947,108180.0,108170.0,0.47465581]
[1748488496304,0.11412073,108180.0,108170.0,0.4834095]
[1748488496695,0.11412073,108180.0,108170.0,0.57446345]
[1748488497271,0.11412073,108180.0,108170.0,0.23624681]
[1748488497599,0.11412073,108180.0,108170.0,0.59294345]
[1748488497801,0.11412073,108180.0,108170.0,0.57446345]
[1748488498004,0.09412073,108180.0,108170.0,0.53679833]
[1748488499849,0.21260791,108180.0,108170.0,0.74016465]
[1748488500473,0.20336449,108180.0,108170.0,0.74016465]
[1748488500698,0.01848744,108180.0,108170.0,0.74940918]
[1748488500882,0.01848744,108180.0,108170.0,0.74940884]
[1748488500883,0.03697377,108180.0,108170.0,0.74940884]
[1748488501088,0.03697377,108180.0,108170.0,0.75865312]
[1748488501290,0.03697377,108180.0,108170.0,1.05325312]
[1748488501559,0.03697377,108180.0,108170.0,1.03476363]
[1748488501560,0.21260766,108180.0,108170.0,1.03476363]
[1748488501769,0.20336424,108180.0,108170.0,1.04400799]
[1748488502009,0.18485742,108200.0,108170.0,1.0255185]
[1748488502228,0.20334552,108190.0,108180.0,0.42541599]
[1748488502437,0.20334552,108190.0,108180.0,0.21975395]
[1748488503481,0.20534552,108190.0,108180.0,0.21975395]
[1748488504137,0.20534552,108190.0,108180.0,0.51435395]
[1748488505183,0.18534552,108190.0,108180.0,0.51435395]
[1748488505557,0.18734552,108190.0,108180.0,0.41715395]
[1748488505784,0.18734552,108190.0,108180.0,0.51423395]
[1748488507472,0.18734552,108190.0,108180.0,0.41715395]
[1748488507685,0.18734552,108190.0,108180.0,0.51423395]
[1748488508317,0.48814552,108190.0,108180.0,0.39168]
[1748488508534,0.51944552,108190.0,108180.0,0.39168]
[1748488509157,0.50374552,108190.0,108180.0,0.39168]
[1748488509375,0.50374552,108190.0,108180.0,0.09708]
[1748488510449,0.48814552,108190.0,108180.0,0.09708]
[1748488510660,0.48814552,108190.0,108180.0,0.42833152]
[1748488510879,0.48814552,108190.0,108180.0,0.12778]
[1748488512185,0.46814552,108190.0,108180.0,0.12778]
[1748488514306,0.46814552,108190.0,108180.0,0.11228]
[1748488514510,0.46814552,108190.0,108180.0,0.09708]
[1748488518152,0.46806552,108190.0,108180.0,0.09708]
[1748488518772,0.46806552,108190.0,108180.0,0.11308]
[1748488519014,0.46806552,108190.0,108180.0,0.42328]
[1748488519205,0.17658834,108190.0,108180.0,1.00900637]
[1748488519440,0.16583108,108190.0,108180.0,1.02749347]
[1748488519667,0.21658851,108190.0,108180.0,1.02749347]
[1748488520104,0.21658851,108190.0,108180.0,1.43766325]
[1748488520322,0.03172855,108190.0,108180.0,1.44690659]
[1748488520530,0.21658851,108190.0,108180.0,1.12786831]
[1748488520735,0.21658851,108190.0,108180.0,1.43766342]
[1748488521400,0.21658851,108190.0,108180.0,1.44690693]
[1748488521640,0.02248556,108190.0,108180.0,1.45615035]
[1748488521852,0.02248522,108190.0,108180.0,1.45614975]
[1748488522065,0.03172804,108190.0,108180.0,1.45614975]
[1748488522272,0.04097095,108190.0,108180.0,1.45614975]
[1748488522613,0.04097095,108190.0,108180.0,1.80454975]
[1748488522890,0.04097095,108190.0,108180.0,2.10893563]
[1748488522891,0.004,108190.0,108180.0,2.10893563]
[1748488523074,0.004,108190.0,108180.0,2.09417997]
[1748488523276,0.004,108190.0,108180.0,2.19362845]
[1748488523517,0.004,108190.0,108180.0,2.49417997]
[1748488523709,0.002,108190.0,108180.0,2.49417997]
[1748488524367,0.04620891,108200.0,108190.0,0.58368775]
[1748488524368,0.03696677,108200.0,108190.0,0.58368775]
[1748488524516,0.03696677,108200.0,108190.0,0.99001789]
[1748488525089,0.04620882,108200.0,108190.0,1.39926037]
[1748488525292,0.23105247,108200.0,108190.0,1.27451014]
[1748488525509,0.23105247,108200.0,108190.0,1.16806149]
[1748488525510,0.20332707,108200.0,108190.0,1.16806149]
[1748488525713,0.20332707,108200.0,108190.0,1.18834388]
[1748488525891,0.20332707,108200.0,108190.0,1.4908954]
[1748488526097,0.20332707,108200.0,108190.0,1.0908954]
[1748488526307,0.18332707,108200.0,108190.0,1.07617073]
[1748488526502,0.18332707,108200.0,108190.0,1.07817081]
[1748488527131,0.18324086,108200.0,108190.0,1.07817081]
[1748488527334,0.18324086,108200.0,108190.0,1.07816982]
[1748488527515,0.18324086,108200.0,108190.0,1.09664982]
[1748488528041,0.18324086,108200.0,108190.0,1.39124982]
[1748488528353,0.18324086,108200.0,108190.0,1.41416408]
[1748488531555,0.18324086,108200.0,108190.0,1.80492134]
[1748488532326,0.19944086,108200.0,108190.0,0.43883018]
[1748488532555,0.21504086,108200.0,108190.0,0.43883018]
[1748488532762,0.21504086,108200.0,108190.0,0.42779152]
[1748488533381,0.49560086,108200.0,108190.0,0.42779152]
[1748488535197,0.19504086,108200.0,108190.0,0.42779152]
[1748488535618,0.17944086,108200.0,108190.0,0.42779152]
[1748488536054,0.16324086,108200.0,108190.0,0.42767152]
[1748488536656,0.16324086,108200.0,108190.0,0.43871018]
[1748488537304,0.17924086,108200.0,108190.0,0.14411018]
[1748488539912,0.17924086,108200.0,108190.0,0.14410569]
[1748488540530,0.15924086,108200.0,108190.0,0.14410569]
[1748488542435,0.15924086,108200.0,108190.0,0.13307152]
[1748488542649,0.15924086,108200.0,108190.0,0.42767152]
[1748488542860,0.15924086,108200.0,108190.0,0.43870569]
[1748488544115,0.15924086,108200.0,108190.0,0.43871008]
[1748488547603,0.13924086,108200.0,108190.0,0.43871008]
[1748488548475,0.13924086,108200.0,108190.0,0.43871822]
[1748488552269,0.13924086,108200.0,108190.0,0.34179822]
[1748488552481,0.13924086,108200.0,108190.0,0.43871822]
[1748488554557,0.22971836,108200.0,108190.0,0.0150467]
[1748488554790,0.2345331,108200.0,108190.0,0.004]
[1748488555012,0.1604556,108200.0,108190.0,0.004]
[1748488555452,0.1404556,108200.0,108190.0,0.004]
[1748488555681,0.22640278,108190.0,108180.0,0.50444]
[1748488555904,0.52672278,108190.0,108180.0,0.50444]
[1748488558455,0.52672278,108190.0,108180.0,0.50544]
[1748488558664,0.52672278,108190.0,108180.0,0.50644]
[1748488561337,0.21000278,108190.0,108180.0,0.50644]
[1748488561556,0.20218839,108190.0,108180.0,1.01631225]
[1748488561776,0.19294565,108190.0,108180.0,0.92894547]
[1748488562206,0.19294565,108190.0,108180.0,1.22354547]
[1748488562620,0.17294565,108190.0,108180.0,1.22354547]
[1748488563048,0.18218847,108190.0,108180.0,1.40842252]
[1748488563264,0.18218847,108190.0,108180.0,1.41766637]
[1748488563490,0.18218847,108190.0,108180.0,1.23278932]
[1748488563710,0.18218847,108190.0,108180.0,1.43793952]
[1748488563923,0.01848539,108190.0,108180.0,1.45642662]
[1748488564141,0.112483,108200.0,108190.0,0.23424552]
[1748488564366,0.12172505,108200.0,108190.0,0.61660842]
[1748488564578,0.12172505,108200.0,108190.0,0.43174846]
[1748488564815,0.12172505,108200.0,108190.0,0.42250547]
[1748488564816,0.112483,108200.0,108190.0,0.42250547]
[1748488565243,0.112483,108200.0,108190.0,0.43353494]
[1748488566353,0.112483,108200.0,108190.0,0.72813494]
[1748488566808,0.112483,108200.0,108190.0,0.42758342]
[1748488567490,0.112483,108200.0,108190.0,0.41655395]
[1748488567697,0.112483,108200.0,108190.0,0.44140923]
[1748488568123,0.112483,108200.0,108190.0,0.63551218]
[1748488568584,0.19406691,108210.0,108200.0,0.23472673]
[1748488568811,0.20330777,108210.0,108200.0,0.72484168]
[1748488569231,0.20330777,108210.0,108200.0,0.73408365]
[1748488569660,0.20330777,108210.0,108200.0,0.72484168]
[1748488569661,0.18330777,108210.0,108200.0,0.72484168]
[1748488569867,0.19454888,108210.0,108200.0,0.72484168]
[1748488570080,0.19454888,108210.0,108200.0,0.73408365]
[1748488570498,0.19454888,108210.0,108200.0,0.43353213]
[1748488570711,0.19454888,108210.0,108200.0,0.73408365]
[1748488570912,0.19654888,108210.0,108200.0,0.73408365]
[1748488571117,0.004,108210.0,108200.0,0.74332519]
[1748488571351,0.02248146,108210.0,108200.0,0.75256699]
[1748488571568,0.02248146,108210.0,108200.0,0.75255289]
[1748488571777,0.03172249,108210.0,108200.0,0.75255289]
[1748488571986,0.02248146,108210.0,108200.0,0.75255289]
[1748488572204,0.0112406,108210.0,108200.0,0.75255289]
[1748488572434,0.0092406,108210.0,108200.0,1.40187756]
[1748488572642,0.01848137,108210.0,108200.0,1.39086038]
[1748488572846,0.01848129,108210.0,108200.0,1.39086038]
[1748488573271,0.00923983,108220.0,108210.0,0.21860794]
[1748488573493,0.20327054,108230.0,108220.0,0.22504898]
[1748488573766,0.19403122,108230.0,108220.0,0.51932547]
[1748488573989,0.19403122,108230.0,108220.0,1.14013463]
[1748488573990,0.01847831,108230.0,108220.0,1.14013463]
[1748488574206,0.04619593,108230.0,108220.0,1.15114385]
[1748488574431,0.02771703,108230.0,108220.0,1.15119316]
[1748488574640,0.04619576,108230.0,108220.0,1.15119316]
[1748488574853,0.04619653,108230.0,108220.0,0.85064164]
[1748488575091,0.01847822,108230.0,108220.0,1.15119316]
[1748488575313,0.0277172,108230.0,108220.0,1.16043299]
[1748488575730,0.21250944,108230.0,108220.0,1.13271333]
[1748488575936,0.21250944,108230.0,108220.0,1.14195359]
[1748488576175,0.20327037,108230.0,108220.0,1.14195359]
[1748488576384,0.20327037,108230.0,108220.0,0.85064224]
[1748488576601,0.18327037,108230.0,108220.0,0.83963319]
[1748488577522,0.17403096,108230.0,108220.0,0.49014326]
[1748488577748,0.19043096,108230.0,108220.0,0.49576931]
[1748488577975,0.20643096,108230.0,108220.0,0.49576931]
[1748488578201,0.19043096,108230.0,108220.0,0.49576931]
[1748488578411,0.19043096,108230.0,108220.0,0.68981838]
[1748488578633,0.17403096,108230.0,108220.0,1.08142376]
[1748488578859,0.17403096,108230.0,108220.0,1.11302376]
[1748488579532,0.17403096,108230.0,108220.0,1.25897478]
[1748488579741,0.17381607,108230.0,108220.0,1.25897478]
[1748488579959,0.17381607,108230.0,108220.0,0.92682326]
[1748488580437,0.18951607,108230.0,108220.0,0.83014326]
[1748488580665,0.20601607,108230.0,108220.0,0.83576931]
[1748488582859,0.20601607,108230.0,108220.0,0.83625296]
[1748488583282,0.20601607,108230.0,108220.0,0.39957296]
[1748488583502,0.20601607,108230.0,108220.0,0.49625296]
[1748488583716,0.18601607,108230.0,108220.0,0.49625296]
[1748488587736,0.18601607,108230.0,108220.0,0.39957296]
[1748488587943,0.18601607,108230.0,108220.0,0.49625296]
[1748488589227,0.18601607,108230.0,108220.0,0.39957296]
[1748488589435,0.15381607,108230.0,108220.0,0.49625296]
[1748488590547,0.15381607,108230.0,108220.0,0.69954228]
[1748488590761,0.15381607,108230.0,108220.0,1.11330758]
[1748488590762,0.16305556,108230.0,108220.0,1.11330758]
[1748488590970,0.14305556,108230.0,108220.0,1.11330758]
[1748488591183,0.14305556,108230.0,108220.0,1.12254793]
[1748488591405,0.14305556,108230.0,108220.0,0.82199641]
[1748488592269,0.14305556,108230.0,108220.0,0.80599641]
[1748488592480,0.14305556,108230.0,108220.0,0.58730691]
[1748488593988,0.14305556,108230.0,108220.0,0.49062691]
[1748488594208,0.17335556,108230.0,108220.0,0.58730691]
[1748488597209,0.17335556,108230.0,108220.0,0.58710691]
[1748488597856,0.15335556,108230.0,108220.0,0.58710691]
[1748488600063,0.12305556,108230.0,108220.0,0.58710691]
[1748488600281,0.12305556,108230.0,108220.0,0.61900691]
[1748488600488,0.12305556,108230.0,108220.0,0.63003367]
[1748488600706,0.12305556,108230.0,108220.0,0.93058519]
[1748488600881,0.12305556,108230.0,108220.0,1.14311452]
[1748488601071,0.12305556,108230.0,108220.0,1.13387452]
[1748488601914,0.12305556,108230.0,108220.0,1.12463426]
[1748488603193,0.12305556,108230.0,108220.0,1.13935893]
[1748488604074,0.12305556,108230.0,108220.0,1.1393609]
[1748488604318,0.12305556,108230.0,108220.0,1.14860116]
[1748488605112,0.10305556,108230.0,108220.0,1.14860116]
[1748488606698,0.10305556,108230.0,108220.0,1.14810116]
[1748488607924,0.10305556,108230.0,108220.0,1.13337649]
[1748488608084,0.10305556,108230.0,108220.0,1.14810116]
[1748488609306,0.09381607,108230.0,108220.0,0.94481183]
[1748488609522,0.09381607,108230.0,108220.0,0.63810074]
[1748488609690,0.09381607,108230.0,108220.0,0.62160074]
[1748488610310,0.10931607,108230.0,108220.0,0.50115564]
[1748488610521,0.12521607,108230.0,108220.0,0.50658169]
[1748488611739,0.10971607,108230.0,108220.0,0.50658169]
[1748488612156,0.08971607,108230.0,108220.0,0.50658169]
[1748488612357,0.08971607,108230.0,108220.0,0.50658598]
[1748488614244,0.10581607,108230.0,108220.0,0.50658598]
[1748488617273,0.10581607,108230.0,108220.0,0.10804598]
[1748488619111,0.08581607,108230.0,108220.0,0.10804598]
[1748488620791,0.08581607,108230.0,108220.0,0.10804989]
[1748488622490,0.08581607,108230.0,108220.0,0.10804977]
[1748488623444,0.08581607,108230.0,108220.0,0.10804983]
[1748488626397,0.21679164,108230.0,108220.0,0.10804983]
[1748488626606,0.21679164,108230.0,108220.0,0.09701296]
[1748488627440,0.21679164,108230.0,108220.0,0.12653965]
[1748488627648,0.21679164,108230.0,108220.0,0.10804965]
[1748488627862,0.21679164,108230.0,108220.0,0.10804992]
[1748488632104,0.21679164,108230.0,108220.0,0.10805198]
[1748488632945,0.20069164,108230.0,108220.0,0.10805198]
[1748488633114,0.18479164,108230.0,108220.0,0.10805198]
[1748488633502,0.16479164,108230.0,108220.0,0.10805198]
[1748488633744,0.16479164,108230.0,108220.0,0.23140593]
[1748488636069,0.16479164,108230.0,108220.0,0.22036691]
[1748488636284,0.16479164,108230.0,108220.0,0.23141585]
[1748488636506,0.18327054,108230.0,108220.0,0.74449696]
[1748488636721,0.18327054,108230.0,108220.0,0.76845255]
[1748488636921,0.18327054,108230.0,108220.0,0.75921255]
[1748488637340,0.02463778,108250.0,108240.0,0.19401295]
[1748488637585,0.21247068,108250.0,108240.0,0.69113706]
[1748488637842,0.21247068,108250.0,108240.0,0.76768344]
[1748488637843,0.01847531,108250.0,108240.0,0.76768344]
[1748488638080,0.01847531,108250.0,108240.0,0.75663918]
[1748488638524,0.01847378,108260.0,108250.0,0.21247008]
[1748488638727,0.01847378,108260.0,108250.0,0.34595435]
[1748488638938,0.01847378,108260.0,108250.0,0.64650604]
[1748488639166,0.20321421,108260.0,108250.0,0.64650604]
[1748488639593,0.20321421,108260.0,108250.0,1.03622877]
[1748488639807,0.19397745,108260.0,108250.0,1.03622877]
[1748488640017,0.19397745,108260.0,108250.0,1.05027145]
[1748488640224,0.19397745,108260.0,108250.0,1.0454663]
[1748488640458,0.17397745,108260.0,108250.0,0.73567725]
[1748488640671,0.17397745,108260.0,108250.0,1.03622877]
[1748488640882,0.17397745,108260.0,108250.0,0.73567725]
[1748488641091,0.17389127,108260.0,108250.0,0.73567725]
[1748488641301,0.17389127,108260.0,108250.0,0.73667725]
[1748488641722,0.17389127,108260.0,108250.0,0.72843955]
[1748488641926,0.17389127,108260.0,108250.0,0.71263955]
[1748488642347,0.17389127,108260.0,108250.0,0.72187725]
[1748488642552,0.17389127,108260.0,108250.0,0.71084693]
[1748488642761,0.17389127,108260.0,108250.0,0.72187725]
[1748488643633,0.17389127,108260.0,108250.0,0.74771486]
[1748488644096,0.484011,108270.0,108260.0,0.19397736]
[1748488644325,0.01847292,108260.0,108250.0,1.05750323]
[1748488644536,0.02771054,108260.0,108250.0,1.14454604]
[1748488644742,0.20321438,108260.0,108250.0,1.14454604]
[1748488644966,0.20321438,108260.0,108250.0,0.64452752]
[1748488645173,0.21881438,108260.0,108250.0,0.61232752]
[1748488645393,0.21881438,108260.0,108250.0,0.61237683]
[1748488645826,0.20321438,108260.0,108250.0,0.61058429]
[1748488646040,0.19397745,108260.0,108250.0,0.60034651]
[1748488646940,0.19397745,108260.0,108250.0,0.60134651]
[1748488647580,0.18977745,108260.0,108250.0,0.50506651]
[1748488647798,0.20527745,108260.0,108250.0,0.60134651]
[1748488648688,0.20527745,108260.0,108250.0,0.40000931]
[1748488648947,0.20527745,108260.0,108250.0,0.49628931]
[1748488654610,0.18527745,108260.0,108250.0,0.49628931]
[1748488655265,0.16977745,108260.0,108250.0,0.49628931]
[1748488655688,0.15397745,108260.0,108250.0,0.51148931]
[1748488656127,0.15397745,108260.0,108250.0,0.91889478]
[1748488657003,0.15397745,108260.0,108250.0,0.60254326]
[1748488657270,0.15397745,108260.0,108250.0,0.58734326]
[1748488658494,0.15397745,108260.0,108250.0,0.60102696]
[1748488659581,0.16917745,108260.0,108250.0,0.60102696]
[1748488661115,0.16917745,108260.0,108250.0,0.89562696]
[1748488661507,0.15397745,108260.0,108250.0,0.89562696]
[1748488661736,0.13397745,108260.0,108250.0,0.89562696]
[1748488664391,0.13397745,108260.0,108250.0,0.9066243]
[1748488664809,0.13397745,108260.0,108250.0,0.90663784]
[1748488665230,0.13397745,108260.0,108250.0,0.92283784]
[1748488665654,0.13397745,108260.0,108250.0,0.52387784]
[1748488666076,0.13397745,108260.0,108250.0,0.53967784]
[1748488667306,0.13397745,108260.0,108250.0,0.50767784]
[1748488668751,0.11397745,108260.0,108250.0,0.50767784]
[1748488668959,0.11397745,108260.0,108250.0,0.50769467]
[1748488670411,0.11397745,108260.0,108250.0,1.01147917]
[1748488670638,0.11397745,108260.0,108250.0,1.04327917]
[1748488670850,0.00923676,108260.0,108250.0,1.06724239]
[1748488671144,0.01847378,108260.0,108250.0,1.07647975]
[1748488671364,0.01847378,108260.0,108250.0,0.77264154]
[1748488671365,0.00923633,108260.0,108250.0,0.77264154]
[1748488671577,0.00923633,108260.0,108250.0,1.10161383]
[1748488671842,0.01847275,108260.0,108250.0,1.10161383]
[1748488672050,0.2031951,108270.0,108260.0,0.58475089]
[1748488672259,0.2031951,108270.0,108260.0,0.69050019]
[1748488672466,0.2031951,108270.0,108260.0,0.99105171]
[1748488672685,0.2031951,108270.0,108260.0,1.00206829]
[1748488673116,0.2031951,108270.0,108260.0,0.99105171]
[1748488673319,0.2041951,108270.0,108260.0,1.00206347]
[1748488673741,0.19495936,108270.0,108260.0,0.69227544]
[1748488673947,0.19595936,108270.0,108260.0,0.69227544]
[1748488674156,0.19595936,108270.0,108260.0,0.67637544]
[1748488674376,0.19595936,108270.0,108260.0,0.46599808]
[1748488674809,0.19595936,108270.0,108260.0,0.45676106]
[1748488675119,0.21872337,108270.0,108260.0,0.44206571]
[1748488675304,0.21872337,108270.0,108260.0,0.10705176]
[1748488675522,0.21872337,108270.0,108260.0,0.09604]
[1748488675712,0.19872337,108270.0,108260.0,0.09604]
[1748488678716,0.19397728,108260.0,108250.0,0.37944012]
[1748488678919,0.22457728,108260.0,108250.0,0.55183872]
[1748488680357,0.52317728,108260.0,108250.0,0.46078477]
[1748488680571,0.52317728,108260.0,108250.0,0.46178477]
[1748488681404,0.52317728,108260.0,108250.0,0.10810107]
[1748488681599,0.52317728,108260.0,108250.0,0.40270107]
[1748488681918,0.52317728,108260.0,108250.0,0.39168931]
[1748488682368,0.52313728,108260.0,108250.0,0.39168931]
[1748488682581,0.52313728,108260.0,108250.0,0.3066732]
[1748488682804,0.52313728,108260.0,108250.0,0.39168931]
[1748488683878,0.52313728,108260.0,108250.0,0.00104931]
[1748488683879,0.50313728,108260.0,108250.0,0.00104931]
[1748488684104,0.51237413,108260.0,108250.0,0.00104931]
[1748488685209,0.51718635,108260.0,108250.0,0.00104931]
[1748488685624,0.6082403,108260.0,108250.0,0.00104931]
[1748488688319,0.62278115,108260.0,108250.0,0.00104931]
[1748488689397,0.62478115,108260.0,108250.0,0.00104931]
[1748488689839,0.62478115,108260.0,108250.0,4.931e-05]
[1748488690100,0.62678115,108260.0,108250.0,4.931e-05]
[1748488691011,0.60678115,108260.0,108250.0,4.931e-05]
[1748488697180,0.60666115,108260.0,108250.0,4.931e-05]
[1748488697948,0.58666115,108260.0,108250.0,4.931e-05]
[1748488700766,0.28822115,108260.0,108250.0,4.931e-05]
[1748488701013,0.58662115,108260.0,108250.0,4.931e-05]
[1748488701655,0.28822115,108260.0,108250.0,4.931e-05]
[1748488701872,0.38941395,108260.0,108250.0,4.931e-05]
[1748488702080,0.57415438,108260.0,108250.0,4.931e-05]
[1748488702337,0.58820364,108260.0,108250.0,4.931e-05]
[1748488703922,0.60274449,108260.0,108250.0,4.931e-05]
[1748488704956,0.63414449,108260.0,108250.0,4.931e-05]
[1748488705168,0.61414449,108260.0,108250.0,4.931e-05]
[1748488712063,0.59414449,108260.0,108250.0,4.931e-05]
[1748488717015,0.96459261,108260.0,108250.0,4.931e-05]
[1748488717675,1.3290133,108260.0,108250.0,4.931e-05]
[1748488717902,1.30528847,108260.0,108250.0,4.931e-05]
[1748488718328,1.60528847,108260.0,108250.0,4.931e-05]
[1748488718525,1.60828847,108260.0,108250.0,4.931e-05]
[1748488718740,1.69934242,108260.0,108250.0,4.931e-05]
[1748488718937,1.69634242,108260.0,108250.0,4.931e-05]
[1748488719148,1.69834242,108260.0,108250.0,4.931e-05]
[1748488719375,0.2032702,108230.0,108220.0,0.05048365]
[1748488719593,0.2032702,108230.0,108220.0,0.05053297]
[1748488719594,0.62368415,108230.0,108220.0,0.05053297]
[1748488722453,0.62949551,108230.0,108220.0,0.05053297]
[1748488724185,0.60949551,108230.0,108220.0,0.05053297]
[1748488724643,0.62797407,108230.0,108220.0,0.05053297]
[1748488726882,0.62789407,108230.0,108220.0,0.05053297]
[1748488727965,0.59665407,108230.0,108220.0,0.05053297]
[1748488730276,0.61165407,108230.0,108220.0,0.05053297]
[1748488731253,0.57665407,108230.0,108220.0,0.05053297]
[1748488732278,0.59119492,108230.0,108220.0,0.05053297]
[1748488732537,0.62379492,108230.0,108220.0,0.05053297]
[1748488734514,0.96379492,108230.0,108220.0,0.05053297]
[1748488734730,1.05484887,108230.0,108220.0,0.05053297]
[1748488736677,0.96379492,108230.0,108220.0,0.05053297]
[1748488738434,0.94379492,108230.0,108220.0,0.05053297]
[1748488739313,0.64575492,108230.0,108220.0,0.05053297]
[1748488739534,0.94367492,108230.0,108220.0,0.05053297]
[1748488745428,0.97784787,108230.0,108220.0,0.05053297]
[1748488745665,0.95412304,108230.0,108220.0,0.05053297]
[1748488746552,0.95612304,108230.0,108220.0,0.05053297]
[1748488747436,1.35335304,108230.0,108220.0,0.05053297]
[1748488747912,0.20332656,108200.0,108190.0,0.0171]
[1748488748147,0.20332656,108200.0,108180.0,0.0406]
[1748488748148,0.19410278,108190.0,108180.0,0.0406]
[1748488748430,0.19410278,108190.0,108180.0,0.04074808]
[1748488748902,0.19891203,108190.0,108180.0,0.04074808]
[1748488749805,0.19891203,108190.0,108180.0,0.05139745]
[1748488750444,0.19891203,108190.0,108180.0,0.05339745]
[1748488750869,0.19891203,108190.0,108180.0,0.06204684]
[1748488751292,0.19891203,108190.0,108180.0,0.07069622]
[1748488751506,0.19891203,108190.0,108180.0,0.06204684]
[1748488751720,0.19891203,108190.0,108180.0,0.06294684]
[1748488751962,0.28996598,108190.0,108180.0,0.07159636]
[1748488752266,0.30450683,108190.0,108180.0,0.02984684]
[1748488752450,0.35070942,108190.0,108180.0,0.02984684]
[1748488752664,0.33610683,108190.0,108180.0,0.02984684]
[1748488753129,0.33610683,108190.0,108180.0,0.02584684]
[1748488753358,0.33910683,108190.0,108180.0,0.02584684]
[1748488753601,0.34210683,108190.0,108180.0,0.02584684]
[1748488754080,0.68210683,108190.0,108180.0,0.02584684]
[1748488755770,0.77316078,108190.0,108180.0,0.02584684]
[1748488756018,0.86852078,108190.0,108180.0,0.02584684]
[1748488756439,1.07522683,108190.0,108180.0,0.02584684]
[1748488756866,0.65050683,108190.0,108180.0,0.02584684]
[1748488757088,1.04362683,108190.0,108180.0,0.02584684]
[1748488757309,1.05982683,108190.0,108180.0,0.02584684]
[1748488757522,1.07762683,108190.0,108180.0,0.02584684]
[1748488758849,1.07762683,108190.0,108180.0,0.03084684]
[1748488759484,1.05762683,108190.0,108180.0,0.03084684]
[1748488761805,1.07136037,108190.0,108180.0,0.03084684]
[1748488765689,0.64424037,108190.0,108180.0,0.06584684]
[1748488765919,0.94192037,108190.0,108180.0,0.06584684]
[1748488766641,0.92192037,108190.0,108180.0,0.06584684]
[1748488766873,0.61050683,108190.0,108180.0,0.06584684]
[1748488767082,0.59596598,108190.0,108180.0,0.06584684]
[1748488767514,0.16491203,108190.0,108180.0,0.42639836]
[1748488767735,0.16491203,108190.0,108180.0,0.52175836]
[1748488768392,0.16191203,108190.0,108180.0,0.22120684]
[1748488768624,0.16091203,108190.0,108180.0,0.22120684]
[1748488768855,0.16291203,108190.0,108180.0,0.22120684]
[1748488769069,0.16091203,108190.0,108180.0,0.22120684]
[1748488769282,0.16191203,108190.0,108180.0,0.22120684]
[1748488769926,0.15991203,108190.0,108180.0,0.22120684]
[1748488771246,0.15510278,108190.0,108180.0,0.22120684]
[1748488773641,0.13510278,108190.0,108180.0,0.22120684]
[1748488776198,0.47510278,108190.0,108180.0,0.12584684]
[1748488776640,0.47510278,108190.0,108180.0,0.11584684]
[1748488776853,0.47510278,108190.0,108180.0,0.12584684]
[1748488777071,0.13510278,108190.0,108180.0,0.12584684]
[1748488780759,0.11510278,108190.0,108180.0,0.12584684]
[1748488784492,0.11510278,108190.0,108180.0,0.22096684]
[1748488786203,0.41250278,108190.0,108180.0,0.22096684]
[1748488786720,0.11510278,108190.0,108180.0,0.22096684]
[1748488786939,0.41250278,108190.0,108180.0,0.22096684]
[1748488787935,0.39250278,108190.0,108180.0,0.22096684]
[1748488793026,0.39250278,108190.0,108180.0,0.08084684]
[1748488793482,0.40950278,108190.0,108180.0,0.08084684]
[1748488793715,0.40950278,108190.0,108180.0,0.03084684]
[1748488793978,0.52206891,108190.0,108180.0,0.0395019]
[1748488794203,0.52206891,108190.0,108180.0,0.04815706]
[1748488794427,0.52206891,108190.0,108180.0,0.09815727]
[1748488794634,0.52206891,108190.0,108180.0,0.09815726]
[1748488795069,0.52206891,108190.0,108180.0,0.09815722]
[1748488795287,0.52206891,108190.0,108180.0,0.0981572]
[1748488795501,0.50206891,108190.0,108180.0,0.0981572]
[1748488795981,0.50206891,108190.0,108180.0,0.09815234]
[1748488796207,0.50206891,108190.0,108180.0,0.04815234]
[1748488796410,0.50206891,108190.0,108180.0,0.0395019]
[1748488796640,0.50206891,108190.0,108180.0,0.0895019]
[1748488798003,0.50206891,108190.0,108180.0,0.0395019]
[1748488798224,0.50206891,108190.0,108180.0,0.0895019]
[1748488798446,0.46836891,108190.0,108180.0,0.0895019]
[1748488798665,0.07991496,108190.0,108180.0,0.1330019]
[1748488798886,0.37719496,108190.0,108180.0,0.1330019]
[1748488799604,0.37715496,108190.0,108180.0,0.0995019]
[1748488800027,0.37715496,108190.0,108180.0,0.1325019]
[1748488801106,0.07991496,108190.0,108180.0,0.1162019]
[1748488801315,0.37715496,108190.0,108180.0,0.0995019]
[1748488802400,0.37715496,108190.0,108180.0,0.1344019]
[1748488803025,0.35715496,108190.0,108180.0,0.1344019]
[1748488803690,0.35711496,108190.0,108180.0,0.1344019]
[1748488807003,0.05991496,108190.0,108180.0,0.1344019]
[1748488807233,0.05991496,108190.0,108180.0,0.52831837]
[1748488807448,0.05510278,108190.0,108180.0,0.52600737]
[1748488807695,0.05510278,108190.0,108180.0,1.01472827]
[1748488807696,0.21358843,108190.0,108180.0,1.01472827]
[1748488807917,0.21358843,108190.0,108180.0,0.84091667]